bitfinex-derivatives/quotes_BNBF0:USTF0_20250630
["timestamp","ask_amount","ask_price","bid_price","bid_amount"]
[1751302712451,3.78515061,660.38,658.34,1.21699525]
[1751302712647,3.78515061,660.38,658.35,1.21699525]
[1751302712950,3.78515061,660.38,658.36,1.21699525]
[1751302713151,3.78515061,660.38,658.37,1.21699525]
[1751302713352,3.78515061,660.38,658.38,1.21699525]
[1751302713652,3.78515061,660.38,658.39,1.21699525]
[1751302713947,3.78515061,660.29,658.4,1.21699525]
[1751302714248,3.78515061,660.29,658.41,1.21699525]
[1751302714451,3.78515061,660.29,658.42,1.21699525]
[1751302714649,3.78515061,660.29,658.43,1.21699525]
[1751302714950,3.78515061,660.29,658.17,3.7573676]
[1751302714951,3.78515061,660.29,658.44,1.21699525]
[1751302715148,3.78515061,660.34,658.45,1.21699525]
[1751302715448,3.78515061,660.34,658.46,1.21699525]
[1751302715747,3.78515061,660.43,658.47,1.21699525]
[1751302715950,3.78515061,660.43,658.48,1.21699525]
[1751302716148,3.78515061,660.3,658.49,1.21699525]
[1751302716350,5.2903841,660.09,658.5,1.21699525]
[1751302716551,5.2903841,660.09,658.51,1.21699525]
[1751302716749,3.78515061,660.01,658.52,1.21699525]
[1751302716948,3.78515061,660.01,658.37,1.1253676]
[1751302716949,3.78515061,660.01,658.53,1.21699525]
[1751302717248,3.78515061,660.07,658.54,1.21699525]
[1751302717449,3.78515061,660.07,658.55,1.21699525]
[1751302717753,3.78515061,660.06,658.56,1.21699525]
[1751302717952,3.78515061,660.06,658.57,1.21699525]
[1751302718250,3.78515061,660.06,658.58,1.21699525]
[1751302718452,3.78515061,660.06,658.59,1.21699525]
[1751302718653,3.78515061,660.06,658.6,1.21699525]
[1751302718851,3.78515061,660.06,658.35,1.1253676]
[1751302719050,3.78515061,660.06,658.36,1.21739515]
[1751302719254,3.78515061,660.07,658.37,1.21739515]
[1751302719553,3.78515061,660.07,658.38,1.21739515]
[1751302719751,3.78515061,660.06,658.39,1.21739515]
[1751302719955,3.78515061,660.06,658.4,1.21739515]
[1751302720256,3.78515061,660.06,658.41,1.21739515]
[1751302720552,3.78515061,660.06,658.42,1.21739515]
[1751302720754,3.78515061,660.06,658.43,1.21739515]
[1751302720955,3.78515061,660.06,658.44,1.21739515]
[1751302721153,3.78515061,660.06,658.45,1.21739515]
[1751302721349,3.78515061,660.05,658.46,1.21739515]
[1751302721555,3.78515061,660.05,658.47,1.21739515]
[1751302721756,3.78515061,660.06,658.48,1.21739515]
[1751302721955,3.78515061,660.06,658.49,1.21739515]
[1751302722152,3.78515061,660.06,658.5,1.21739515]
[1751302722358,3.78515061,660.05,658.51,1.21739515]
[1751302722553,3.78515061,660.05,658.52,1.21739515]
[1751302722757,3.78515061,660.05,658.53,1.21739515]
[1751302722958,3.78515061,660.05,658.54,1.21739515]
[1751302723255,3.78515061,660.05,658.55,1.21739515]
[1751302723462,5.2903841,660.33,658.56,1.21739515]
[1751302723759,3.78515061,660.42,658.57,1.21739515]
[1751302723957,3.78515061,660.43,658.58,1.21739515]
[1751302724156,3.78515061,660.43,658.59,1.21739515]
[1751302724357,3.78515061,660.42,658.25,1.1253676]
[1751302724554,3.78515061,660.42,658.26,2.21941881]
[1751302724757,3.78515061,660.42,658.27,2.21941881]
[1751302725059,3.78515061,660.42,658.28,2.21941881]
[1751302725360,3.78515061,660.42,658.29,2.21941881]
[1751302725560,3.78515061,660.41,658.3,2.21941881]
[1751302725761,3.78515061,660.41,658.31,1.21439384]
[1751302725961,3.78515061,660.39,658.32,1.21439384]
[1751302726260,3.78515061,660.39,658.33,1.21439384]
[1751302726561,3.78515061,660.37,658.34,1.21439384]
[1751302726762,3.78515061,660.37,658.35,1.21439384]
[1751302726960,3.78515061,660.59,658.36,1.21439384]
[1751302727158,3.78515061,660.59,658.37,2.22005286]
[1751302727462,3.78515061,660.58,658.38,2.22005286]
[1751302727661,3.78515061,660.58,658.39,2.22005286]
[1751302727858,3.78515061,660.58,658.4,1.21439384]
[1751302728063,3.78515061,660.58,658.41,1.21439384]
[1751302728259,3.78515061,660.58,658.42,1.21439384]
[1751302728463,3.78515061,660.58,658.43,1.21439384]
[1751302728660,3.78515061,660.57,658.44,1.21439384]
[1751302728860,3.78515061,660.57,658.45,1.21439384]
[1751302729163,3.78515061,660.52,658.46,1.21439384]
[1751302729363,3.78515061,660.52,658.47,1.21439384]
[1751302729658,3.78515061,660.46,658.48,1.21439384]
[1751302729863,3.78515061,660.46,658.49,1.21439384]
[1751302730164,3.78515061,660.46,658.5,1.21439384]
[1751302730358,3.78515061,660.46,658.51,1.21439384]
[1751302730664,3.78515061,660.51,658.52,1.21439384]
[1751302730865,3.78515061,660.51,658.53,1.21439384]
[1751302731166,3.78515061,660.5,658.54,1.21439384]
[1751302731365,3.78515061,660.5,658.55,1.21439384]
[1751302731565,3.78515061,660.5,658.29,2.192]
[1751302731764,3.78515061,660.49,658.3,1.21554945]
[1751302731961,3.78515061,660.49,658.31,1.21554945]
[1751302732163,3.78515061,660.49,658.32,1.21554945]
[1751302732462,3.78515061,660.48,658.33,1.21554945]
[1751302732662,3.78515061,660.48,658.34,1.21554945]
[1751302732862,3.78515061,660.37,658.35,1.21554945]
[1751302733060,3.78515061,660.37,658.36,1.21554945]
[1751302733367,3.78515061,660.35,658.37,1.21554945]
[1751302733561,3.78515061,660.35,658.38,1.21554945]
[1751302733766,3.78515061,660.46,658.39,1.21554945]
[1751302734065,3.78515061,660.46,658.4,1.21554945]
[1751302734262,3.78515061,660.44,658.41,1.21554945]
[1751302734565,3.78515061,660.44,658.42,1.21554945]
[1751302734766,3.78515061,660.43,658.43,1.21554945]
[1751302735063,3.78515061,660.43,658.44,1.21554945]
[1751302735260,3.78515061,660.41,658.45,1.21554945]
[1751302735464,3.78515061,660.41,658.46,1.21554945]
[1751302735661,3.78515061,660.41,658.47,1.21554945]
[1751302735865,3.78515061,660.41,658.48,1.21554945]
[1751302736066,3.78515061,660.41,658.49,1.21554945]
[1751302736266,3.78515061,660.41,658.4,3.15]
[1751302736466,3.78515061,660.18,658.41,1.21673196]
[1751302736761,3.78515061,660.18,658.42,1.21673196]
[1751302736965,3.78515061,660.04,658.43,1.21673196]
[1751302737265,3.78515061,660.04,658.4,3.15]
[1751302737565,3.78515061,659.6,658.4,3.15]
[1751302738061,3.78515061,659.51,658.4,3.15]
[1751302738461,3.78515061,659.5,658.4,3.15]
[1751302739061,3.78515061,659.51,658.4,3.15]
[1751302739561,3.78515061,659.49,658.4,3.15]
[1751302740061,3.78515061,659.66,658.4,3.15]
[1751302740762,3.78515061,659.67,658.4,3.15]
[1751302741262,3.78515061,659.61,658.4,3.15]
[1751302742666,3.78515061,660.69,658.4,3.15]
[1751302742867,12.1576825,660.87,658.4,3.15]
[1751302742868,3.78515061,660.94,658.41,2.21874107]
[1751302743065,3.78515061,660.94,658.42,2.21874107]
[1751302743266,3.78515061,660.82,658.43,2.21874107]
[1751302743467,3.78515061,660.82,658.44,2.21874107]
[1751302743768,3.78515061,660.01,658.45,2.21874107]
[1751302743968,3.78515061,660.01,658.46,2.21874107]
[1751302744266,3.78515061,660.01,658.47,2.21874107]
[1751302744464,3.78515061,659.99,658.48,2.21874107]
[1751302744670,3.78515061,659.99,658.49,2.21874107]
[1751302744969,3.78515061,659.96,658.5,1.21050967]
[1751302745165,3.78515061,659.96,658.51,1.21050967]
[1751302745469,3.78515061,659.96,658.52,1.21050967]
[1751302745670,3.78515061,659.96,658.53,1.21050967]
[1751302745870,3.78515061,659.96,658.54,1.21050967]
[1751302746067,3.78515061,659.96,658.55,1.21050967]
[1751302746266,3.78515061,659.96,658.56,1.21050967]
[1751302746469,3.78515061,660.03,658.57,1.21050967]
[1751302746765,3.78515061,660.03,658.58,1.21050967]
[1751302746970,3.78515061,660.03,658.59,1.21050967]
[1751302747166,3.78515061,660.03,658.6,1.21050967]
[1751302747367,3.78515061,660.03,658.61,1.21050967]
[1751302747568,3.78515061,660.02,658.4,3.15]
[1751302747865,3.78515061,660.02,658.41,2.21858142]
[1751302748065,3.78515061,660.0,658.42,2.21858142]
[1751302748269,3.78515061,660.0,658.43,2.21858142]
[1751302748470,3.78515061,660.0,658.44,2.21858142]
[1751302748668,3.78515061,660.0,658.45,2.21858142]
[1751302748966,3.78515061,660.0,658.46,2.21858142]
[1751302749166,3.78515061,660.0,658.47,2.21858142]
[1751302749469,3.78515061,660.01,658.48,1.21068817]
[1751302749665,3.78515061,660.01,658.49,1.21068817]
[1751302749869,3.78515061,660.01,658.5,1.21068817]
[1751302750170,3.78515061,660.01,658.51,1.21068817]
[1751302750369,3.78515061,660.01,658.52,1.21068817]
[1751302750567,3.78515061,660.01,658.53,1.21068817]
[1751302750769,3.78515061,660.01,658.54,1.21068817]
[1751302751071,3.78515061,660.01,658.55,1.21068817]
[1751302751267,3.78515061,660.01,658.56,1.21068817]
[1751302751465,3.78515061,660.01,658.29,2.192]
[1751302751466,3.78515061,660.01,658.57,1.21068817]
[1751302751665,3.78515061,660.08,658.58,1.21068817]
[1751302751865,3.78515061,660.08,658.29,3.3173676]
[1751302752068,3.78515061,660.08,658.3,2.21826132]
[1751302752368,3.78515061,659.99,658.31,2.21826132]
[1751302752570,3.78515061,659.99,658.32,2.21826132]
[1751302752768,3.78515061,659.99,658.33,2.21826132]
[1751302752968,3.78515061,659.99,658.34,2.21826132]
[1751302753269,3.78515061,659.99,658.35,2.21826132]
[1751302753468,3.78515061,659.99,658.36,2.21826132]
[1751302753668,3.78515061,659.98,658.37,2.21826132]
[1751302753869,3.78515061,659.98,658.38,2.21826132]
[1751302754172,3.78515061,659.98,658.39,2.21826132]
[1751302754467,3.78515061,659.98,658.4,2.21826132]
[1751302754670,3.78515061,659.99,658.41,2.21826132]
[1751302754872,3.78515061,659.99,658.42,2.21826132]
[1751302755070,3.78515061,659.99,658.43,2.21826132]
[1751302755273,3.78515061,659.99,658.44,2.21826132]
[1751302755574,3.78515061,659.99,658.45,2.21826132]
[1751302755768,3.78515061,659.98,658.46,2.21826132]
[1751302755969,3.78515061,659.98,658.47,2.21826132]
[1751302756268,3.78515061,660.05,658.48,2.21826132]
[1751302756468,3.78515061,660.05,658.49,2.21826132]
[1751302756673,3.78515061,660.05,658.5,2.21826132]
[1751302756972,3.78515061,660.05,658.51,2.21826132]
[1751302757170,3.78515061,660.05,658.52,1.21047883]
[1751302757473,3.78515061,660.04,658.53,1.21047883]
[1751302757669,3.78515061,660.04,658.54,1.21047883]
[1751302757973,3.78515061,660.04,658.55,1.21047883]
[1751302758273,3.78515061,660.04,658.56,1.21047883]
[1751302758570,3.78515061,660.04,658.57,1.21047883]
[1751302758769,3.78515061,660.04,658.58,1.21047883]
[1751302759073,3.78515061,660.01,658.59,1.21047883]
[1751302759270,3.78515061,660.01,658.6,1.21047883]
[1751302759470,3.78515061,660.01,658.61,1.21047883]
[1751302759771,3.78515061,660.01,658.62,1.21047883]
[1751302759974,3.78515061,660.01,658.63,1.21047883]
[1751302760173,3.78515061,660.01,658.64,1.21047883]
[1751302760371,3.78515061,660.01,658.65,1.21047883]
[1751302760569,3.78515061,660.01,658.66,1.21047883]
[1751302760775,3.78515061,660.01,658.67,1.21047883]
[1751302760976,3.78515061,660.01,658.44,2.488]
[1751302761275,3.78515061,660.01,658.45,2.21902542]
[1751302761470,3.78515061,660.15,658.46,2.21902542]
[1751302761669,3.78515061,660.15,658.47,2.21902542]
[1751302761873,3.78515061,660.15,658.48,2.21902542]
[1751302762072,3.78515061,660.16,658.49,2.21902542]
[1751302762372,3.78515061,660.16,658.5,2.21902542]
[1751302762577,3.78515061,660.21,658.51,2.21902542]
[1751302762776,3.78515061,660.21,658.52,2.21902542]
[1751302762977,3.78515061,660.21,658.53,1.2106763]
[1751302763273,3.78515061,660.21,658.54,1.2106763]
[1751302763476,3.78515061,660.21,658.55,1.2106763]
[1751302763777,3.78515061,660.21,658.56,1.2106763]
[1751302763977,3.78515061,660.21,658.57,1.2106763]
[1751302764176,3.78515061,660.22,658.58,1.2106763]
[1751302764471,3.78515061,660.22,658.59,1.2106763]
[1751302764774,3.78515061,660.23,658.6,1.2106763]
[1751302764978,3.78515061,660.23,658.61,1.2106763]
[1751302765177,3.78515061,660.35,658.62,1.2106763]
[1751302765374,3.78515061,660.35,658.63,1.2106763]
[1751302765675,3.78515061,660.46,658.64,1.2106763]
[1751302765875,3.78515061,660.46,658.65,1.2106763]
[1751302766076,3.78515061,660.46,658.66,1.2106763]
[1751302766280,3.78515061,660.46,658.44,2.488]
[1751302766480,3.78515061,660.46,658.45,2.21881808]
[1751302766775,3.78515061,660.4,658.46,2.21881808]
[1751302767080,3.78515061,660.4,658.47,2.21881808]
[1751302767276,3.78515061,660.4,658.48,2.21881808]
[1751302767479,3.78515061,660.4,658.49,2.21881808]
[1751302767776,3.78515061,660.4,658.5,1.21056075]
[1751302767975,3.78515061,660.4,658.51,1.21056075]
[1751302768178,3.78515061,660.4,658.52,1.21056075]
[1751302768374,3.78515061,660.4,658.53,1.21056075]
[1751302768578,3.78515061,660.4,658.54,1.21056075]
[1751302768776,3.78515061,660.3,658.55,1.21056075]
[1751302769081,3.78515061,660.3,658.56,1.21056075]
[1751302769379,3.78515061,660.3,658.57,1.21056075]
[1751302769574,3.78515061,660.3,658.58,1.21056075]
[1751302769774,3.78515061,660.3,658.44,2.488]
[1751302769981,3.78515061,660.24,658.45,2.21939763]
[1751302770180,3.78515061,660.24,658.46,2.21939763]
[1751302770381,3.78515061,660.23,658.47,2.21939763]
[1751302770582,3.78515061,660.23,658.48,2.21939763]
[1751302770881,3.78515061,660.23,658.49,1.21083908]
[1751302771082,3.78515061,660.23,658.5,1.21083908]
[1751302771284,3.78515061,660.23,658.51,1.21083908]
[1751302771483,3.78515061,660.22,658.52,1.21083908]
[1751302771782,0.26406848,659.8,658.53,1.21083908]
[1751302772082,0.26406848,659.8,658.54,1.21083908]
[1751302772279,0.26406848,659.8,658.55,1.21081912]
[1751302772482,0.26406848,659.8,658.44,2.488]
[1751302772679,0.26406848,659.8,658.45,1.21084618]
[1751302772883,0.26406848,659.8,658.46,1.21084618]
[1751302773081,0.26406848,659.8,658.47,1.21084618]
[1751302773281,0.26406848,659.8,658.48,1.21084618]
[1751302773483,0.26406848,659.8,658.49,1.21084618]
[1751302773786,0.26406848,659.8,658.5,1.21084618]
[1751302774085,0.26406848,659.8,658.51,1.21084618]
[1751302774286,0.26406848,659.8,658.52,1.21084618]
[1751302774583,0.26406848,659.8,658.53,1.21084618]
[1751302774783,0.26406848,659.8,658.54,1.21084618]
[1751302775085,0.26406848,659.8,658.44,2.488]
[1751302775283,0.26406848,659.8,658.55,2.572]
[1751302780289,3.78515061,659.79,658.55,2.572]
[1751302781394,0.26406848,659.8,658.55,2.572]
[1751302796005,4.04921909,659.8,658.55,2.572]
[1751302797603,0.26406848,659.8,658.55,2.572]
[1751302798108,3.78515061,659.76,658.55,2.572]
[1751302798707,3.78515061,659.69,658.55,2.572]
[1751302799706,3.78515061,659.67,658.55,2.572]
[1751302800807,3.78515061,659.65,658.55,2.572]
[1751302801309,3.78515061,659.78,658.55,2.572]
[1751302801804,0.26406848,659.8,658.55,2.572]
[1751302803012,0.26406848,659.8,658.56,1.21016261]
[1751302803209,0.26406848,659.8,658.57,1.21016261]
[1751302803511,0.26406848,659.8,658.58,1.2103247]
[1751302803808,0.26406848,659.8,658.59,1.2103247]
[1751302804007,0.26406848,659.8,658.6,1.2103247]
[1751302804208,0.26406848,659.8,658.61,1.2103247]
[1751302804408,0.26406848,659.8,658.62,1.2103247]
[1751302804606,0.26406848,659.8,658.63,1.2103247]
[1751302804907,0.26406848,659.8,658.64,1.2103247]
[1751302805112,0.26406848,659.8,658.55,2.572]
[1751302805311,0.26406848,659.8,658.56,1.21011687]
[1751302805608,0.26406848,659.8,658.57,1.21011687]
[1751302805812,0.26406848,659.8,658.58,1.21011687]
[1751302806011,0.26406848,659.8,658.44,2.488]
[1751302806012,0.26406848,659.8,658.59,1.21011687]
[1751302806207,0.26406848,659.8,658.6,1.21011687]
[1751302806407,0.26406848,659.8,658.61,1.21011687]
[1751302806607,0.26406848,659.8,658.62,1.21011687]
[1751302806811,0.26406848,659.8,658.63,1.21011687]
[1751302807108,0.26406848,659.8,658.64,1.21011687]
[1751302807410,0.26406848,659.8,658.65,1.21011687]
[1751302807608,0.26406848,659.8,657.56,3.77791212]
[1751302807609,0.26406848,659.8,658.66,1.21011687]
[1751302807808,0.26406848,659.8,658.4,1.1253676]
[1751302808008,0.26406848,659.8,658.41,1.21031757]
[1751302808311,0.26406848,659.8,658.42,1.21031757]
[1751302808509,0.26406848,659.8,658.43,1.21031757]
[1751302808709,0.26406848,659.8,658.44,1.21031757]
[1751302809012,0.26406848,659.8,658.45,1.21031757]
[1751302809210,0.26406848,659.8,658.46,1.21031757]
[1751302809408,0.26406848,659.8,658.47,1.21031757]
[1751302809613,0.26406848,659.8,658.48,1.21031757]
[1751302809812,0.26406848,659.8,658.49,1.21031757]
[1751302810012,0.26406848,659.8,658.5,1.21031757]
[1751302810212,0.26406848,659.8,658.51,1.21031757]
[1751302810416,0.26406848,659.8,658.52,1.21031757]
[1751302810613,0.26406848,659.8,658.53,1.21031757]
[1751302810816,0.26406848,659.8,658.54,1.21031757]
[1751302811020,0.26406848,659.8,658.55,1.21031757]
[1751302811217,0.26406848,659.8,658.56,1.21031757]
[1751302811418,0.26406848,659.8,658.57,1.21031757]
[1751302811618,0.26406848,659.8,658.58,1.21031757]
[1751302811914,0.26406848,659.8,658.59,1.21031757]
[1751302812116,0.26406848,659.8,658.6,1.21031757]
[1751302812317,0.26406848,659.8,658.61,1.21031757]
[1751302812520,0.26406848,659.8,658.62,1.21031757]
[1751302812715,0.26406848,659.8,658.63,1.21031757]
[1751302812918,0.26406848,659.8,658.64,1.21031757]
[1751302813117,0.26406848,659.8,658.65,1.21031757]
[1751302813321,0.26406848,659.8,658.66,1.21031757]
[1751302813521,0.26406848,659.8,658.46,2.782]
[1751302813718,0.26406848,659.8,658.47,2.21266265]
[1751302813916,0.26406848,659.8,658.48,1.21047684]
[1751302814116,0.26406848,659.8,658.49,1.21047684]
[1751302814318,0.26406848,659.8,658.5,1.21047684]
[1751302814516,0.26406848,659.8,658.46,2.782]
[1751302814517,0.26406848,659.8,658.51,1.21047684]
[1751302814721,0.26406848,659.8,658.52,1.21047684]
[1751302814917,0.26406848,659.8,658.53,1.21047684]
[1751302815117,0.26406848,659.8,658.54,1.21047684]
[1751302815317,0.26406848,659.8,658.55,1.21047684]
[1751302815517,0.26406848,659.8,658.56,1.21047684]
[1751302815719,0.26406848,659.8,658.57,1.21047684]
[1751302815923,0.26406848,659.8,658.58,1.21047684]
[1751302816118,0.26406848,659.8,658.59,1.21047684]
[1751302816318,0.26406848,659.8,658.6,1.21047684]
[1751302816618,0.26406848,659.8,658.61,1.21047684]
[1751302816919,0.26406848,659.8,658.62,1.21047684]
[1751302817121,0.26406848,659.8,658.63,1.21047684]
[1751302817321,0.26406848,659.8,658.64,1.21047684]
[1751302817521,0.26406848,659.8,658.65,1.21047684]
[1751302817718,0.26406848,659.8,658.66,1.21047684]
[1751302817922,0.26406848,659.8,658.46,2.782]
[1751302818121,0.26406848,659.8,658.47,2.21267297]
[1751302818323,0.26406848,659.8,658.48,2.21267297]
[1751302818517,0.26406848,659.8,658.49,2.21267297]
[1751302818720,0.26406848,659.8,658.5,2.21267297]
[1751302818920,0.26406848,659.8,658.51,2.21267297]
[1751302819120,0.26406848,659.8,658.52,2.21267297]
[1751302819324,0.26406848,659.8,658.53,2.21267297]
[1751302819624,0.26406848,659.8,658.54,2.21267297]
[1751302819820,0.26406848,659.8,658.55,2.21267297]
[1751302820024,0.26406848,659.8,658.56,2.21267297]
[1751302820225,0.26406848,659.8,658.57,2.21267297]
[1751302820424,0.26406848,659.8,658.58,2.21267297]
[1751302820626,0.26406848,659.8,658.59,2.21267297]
[1751302820828,0.26406848,659.8,658.6,2.21267297]
[1751302821023,0.26406848,659.8,658.61,2.21267297]
[1751302821325,0.26406848,659.8,658.62,2.21267297]
[1751302821522,0.26406848,659.8,658.63,1.21068721]
[1751302821723,0.26406848,659.8,658.64,1.21068721]
[1751302821924,0.26406848,659.8,658.65,1.21068721]
[1751302822127,0.26406848,659.8,658.66,1.21068721]
[1751302822327,0.26406848,659.8,658.67,1.21068721]
[1751302822525,0.26406848,659.8,658.68,1.21068721]
[1751302822727,0.26406848,659.8,658.69,1.21068721]
[1751302823029,0.26406848,659.8,658.7,1.21068721]
[1751302823227,0.26406848,659.8,658.71,1.21068721]
[1751302823530,0.26406848,659.8,658.72,1.21068721]
[1751302823730,0.26406848,659.8,658.73,1.21068721]
[1751302824029,0.26406848,659.8,658.74,1.21068721]
[1751302824226,0.26406848,659.8,658.75,1.21068721]
[1751302824425,0.26406848,659.8,658.76,1.21068721]
[1751302824628,0.26406848,659.8,658.77,1.21068721]
[1751302824827,0.26406848,659.8,658.78,1.21068721]
[1751302825030,0.26406848,659.8,658.79,1.21068721]
[1751302825229,0.26406848,659.8,658.8,1.21068721]
[1751302825433,0.26406848,659.8,658.81,1.21068721]
[1751302825628,0.26406848,659.8,658.82,1.21068721]
[1751302825833,0.26406848,659.8,658.47,1.1253676]
[1751302826032,0.26406848,659.8,658.48,2.20990211]
[1751302826232,0.26406848,659.8,658.49,2.20990211]
[1751302826434,0.26406848,659.8,658.5,2.20990211]
[1751302826733,0.26406848,659.8,658.51,2.20990211]
[1751302827033,0.26406848,659.8,658.52,2.20990211]
[1751302827234,0.26406848,659.8,658.53,2.20990211]
[1751302827429,0.26406848,659.8,658.54,2.20990211]
[1751302827728,0.26406848,659.8,658.55,2.20990211]
[1751302827928,0.26406848,659.8,658.56,1.20942409]
[1751302828328,0.26406848,659.8,658.57,1.20942409]
[1751302828530,0.26406848,659.8,658.58,1.20942409]
[1751302829135,0.26406848,659.8,658.48,1.1253676]
[1751302829335,0.26406848,659.8,658.6,1.12664581]
[1751302829533,0.26406848,659.8,658.61,1.20914912]
[1751302829737,0.26406848,659.8,658.62,1.20914912]
[1751302829933,0.26406848,659.8,658.63,1.20914912]
[1751302830234,0.26406848,659.8,658.64,1.20914912]
[1751302830537,0.26406848,659.8,658.65,1.20914912]
[1751302830734,0.26406848,659.8,658.66,1.20914912]
[1751302830934,0.26406848,659.8,658.67,1.20914912]
[1751302831132,0.26406848,659.8,658.68,1.20914912]
[1751302831332,0.26406848,659.8,658.69,1.20914912]
[1751302831637,0.26406848,659.8,658.7,1.20914912]
[1751302831858,0.26406848,659.8,658.71,1.20914912]
[1751302832034,0.26406848,659.8,658.72,1.20914912]
[1751302832336,0.26406848,659.8,658.73,1.20914912]
[1751302832538,0.26406848,659.8,658.74,1.20914912]
[1751302832736,0.26406848,659.8,658.75,1.20914912]
[1751302832936,0.26406848,659.8,658.76,1.20914912]
[1751302833135,0.26406848,659.8,658.77,1.20914912]
[1751302833340,0.26406848,659.8,658.78,1.20914912]
[1751302833643,0.26406848,659.8,658.62,3.445]
[1751302833644,0.26406848,659.8,658.79,1.20914912]
[1751302833846,0.26406848,659.8,658.8,1.20914912]
[1751302834141,0.26406848,659.8,658.81,1.20914912]
[1751302834341,0.26406848,659.8,658.62,3.445]
[1751302834647,0.26406848,659.8,658.63,1.20848178]
[1751302834842,0.26406848,659.8,658.62,3.445]
[1751302834843,0.26406848,659.8,658.64,1.20848178]
[1751302835046,0.26406848,659.8,658.65,1.20848178]
[1751302835246,0.26406848,659.8,658.66,1.20848178]
[1751302835449,0.26406848,659.8,658.67,1.20848178]
[1751302835750,0.26406848,659.8,658.68,1.20848178]
[1751302836046,0.26406848,659.8,658.69,1.20848178]
[1751302836248,0.26406848,659.8,658.7,1.20848178]
[1751302836444,0.26406848,659.8,658.71,1.20848178]
[1751302836649,0.26406848,659.8,658.72,1.20848178]
[1751302836847,0.26406848,659.8,658.73,1.20848178]
[1751302837149,0.26406848,659.8,658.68,2.784]
[1751302837150,0.26406848,659.8,658.74,1.20848178]
[1751302837347,0.26406848,659.8,658.75,1.20848178]
[1751302837550,0.26406848,659.8,658.76,1.20848178]
[1751302837857,0.26406848,659.8,658.77,1.20848178]
[1751302838047,0.26406848,659.8,658.78,1.20848178]
[1751302838246,0.26406848,659.8,658.79,1.20848178]
[1751302838448,0.26406848,659.8,658.8,1.20848178]
[1751302838650,0.26406848,659.8,658.68,2.784]
[1751302838949,0.26406848,659.8,658.69,1.20753994]
[1751302839150,0.26406848,659.8,658.7,1.20753994]
[1751302839347,0.26406848,659.8,658.71,1.20753994]
[1751302839546,0.26406848,659.8,658.72,1.20753994]
[1751302839749,0.26406848,659.8,658.73,1.20753994]
[1751302839950,0.26406848,659.8,658.74,1.20753994]
[1751302840148,0.26406848,659.8,658.75,1.20753994]
[1751302840349,0.26406848,659.8,658.76,1.20753994]
[1751302840550,0.26406848,659.8,658.77,1.20753994]
[1751302840746,0.26406848,659.8,658.78,1.20753994]
[1751302840951,0.26406848,659.8,658.79,1.20753994]
[1751302841147,0.26406848,659.8,658.8,1.20753994]
[1751302841351,0.26406848,659.8,658.68,2.784]
[1751302841648,0.26406848,659.8,658.69,1.20712433]
[1751302841857,0.26406848,659.8,658.7,1.20712433]
[1751302842048,0.26406848,659.8,658.71,1.20712433]
[1751302842252,0.26406848,659.8,658.72,1.20712433]
[1751302842453,0.26406848,659.8,658.73,1.20712433]
[1751302842753,0.26406848,659.8,658.74,1.20712433]
[1751302842956,0.26406848,659.8,658.75,1.20712433]
[1751302843251,0.26406848,659.8,658.76,1.20712433]
[1751302843451,0.26406848,659.8,658.77,1.20712433]
[1751302843749,0.26406848,659.8,658.78,1.20712433]
[1751302844055,0.26406848,659.8,658.79,1.20712433]
[1751302844251,0.26406848,659.8,658.8,1.20712433]
[1751302844451,0.26406848,659.8,658.68,2.784]
[1751302844652,0.26406848,659.8,658.69,1.20744404]
[1751302844852,0.26406848,659.8,658.7,1.20744404]
[1751302845052,0.26406848,659.8,658.71,1.20744404]
[1751302845252,0.26406848,659.8,658.72,1.20744404]
[1751302845554,0.26406848,659.8,658.73,1.20744404]
[1751302845753,0.26406848,659.8,658.72,2.532]
[1751302845754,0.26406848,659.8,658.74,1.20744404]
[1751302845953,0.26406848,659.8,658.72,2.532]
[1751302845954,0.26406848,659.8,658.75,1.20744404]
[1751302846154,0.26406848,659.8,658.76,1.20744404]
[1751302846356,0.26406848,659.8,658.77,1.20744404]
[1751302846561,0.26406848,659.8,658.78,1.20744404]
[1751302846756,0.26406848,659.8,658.79,1.20744404]
[1751302846956,0.26406848,659.8,658.72,2.532]
[1751302847154,0.26406848,659.8,658.73,1.20728586]
[1751302847457,0.26406848,659.8,658.74,1.20728586]
[1751302847657,0.26406848,659.8,658.75,1.20728586]
[1751302847959,0.26406848,659.8,658.76,1.20728586]
[1751302848155,0.26406848,659.8,658.77,1.20728586]
[1751302848453,0.26406848,659.8,658.78,1.20728586]
[1751302848654,0.26406848,659.8,658.79,1.20728586]
[1751302848859,0.26406848,659.8,658.72,2.532]
[1751302849058,0.26406848,659.8,658.73,1.20749295]
[1751302849354,0.26406848,659.8,658.74,1.20749295]
[1751302849557,0.26406848,659.8,658.75,1.20749295]
[1751302849758,0.26406848,659.8,658.76,1.20749295]
[1751302849956,0.26406848,659.8,658.77,1.20749295]
[1751302850157,0.26406848,659.8,658.72,2.532]
[1751302860579,4.04921909,659.8,658.72,2.532]
[1751302860964,4.04921909,659.8,658.73,2.195]
[1751302861165,3.78515061,659.66,658.73,2.195]
[1751302861766,3.78515061,659.56,658.73,2.195]
[1751302862665,3.78515061,659.62,658.73,2.195]